Cogmind - Beta 16 @@@ ROGUE MODE // 2025.11.24 @ 19:16:19 Player: Regalia Project Result: Destroyed by 85-N85(R) with Subdweller Machine Gun Performance ------------- Evolutions (0) 0 Regions Visited (3) 600 Robots Destroyed (27) 135 Value Destroyed (553) 553 Prototype IDs (0) 0 Alien Tech Used (0) 0 Bonus (0) 0 TOTAL SCORE: 1288 Bonus ------- None Cogmind --------- Core Integrity 0/250 Matter 294/300 Energy 87/100 System Corruption 0% Temperature Cool (0) Movement Walking (120) Location -10/Subcaves Parts ------- > --- POWER (1) -------- (None) > --- PROPULSION (2) --- Carbon-fiber Leg Carbon-fiber Leg > --- UTILITY (2) ------ Scrap Shield > --- WEAPON (2) ------- Subdweller Laser Subdweller Machine Gun > --- INVENTORY (5) ---- Subdweller Monowheel Flight Unit Heat Sink Medium Matter Pod (100) Riot Gun Peak State ------------ > --- POWER ------------ Subdweller Power Source > --- PROPULSION ------- Carbon-fiber Leg Carbon-fiber Leg > --- UTILITY ---------- Scrap Shield > --- WEAPON ----------- Riot Gun Subdweller Machine Gun > --- INVENTORY -------- Subdweller Monowheel Flight Unit Heat Sink Medium Matter Pod Beam Rifle [Rating: 17] Favorites ----------- Power Light Ion Engine Engine Light Ion Engine Propulsion Aluminum Leg Leg Aluminum Leg Wheel Subdweller Monowheel Utility High-capacity Storage Unit Device Seismic Detector Storage High-capacity Storage Unit Protection Light Armor Plating Weapon Light Assault Rifle Energy Gun Beam Rifle Ballistic Gun Light Assault Rifle Launcher Rocket Launcher Build | -11 -10 -10 -10 ------- Run | Yrd Mat Min Sub Slots Evolved . | . . . . Power . | . . . . Propulsion . | . . . . Utility . | . . . . Weapon . | . . . . Parts Attached 37 | 8 2 8 19 Power 6 | 1 1 1 3 Engine 6 | 1 1 1 3 Core . | . . . . Reactor . | . . . . Propulsion 11 | 2 . 3 6 Treads . | . . . . Leg 6 | 2 . 2 2 Wheel 5 | . . 1 4 Hover . | . . . . Flight . | . . . . Utility 8 | 3 . 2 3 Device 3 | 2 . . 1 Storage 2 | 1 . 1 . Processor . | . . . . Hackware . | . . . . Protection 3 | . . 1 2 Artifact . | . . . . Weapon 12 | 2 1 2 7 Energy Gun 5 | . 1 1 3 Energy Cannon . | . . . . Ballistic Gun 6 | 2 . 1 3 Ballistic Cannon . | . . . . Launcher 1 | . . . 1 Special Weapon . | . . . . Impact Weapon . | . . . . Slashing Weapon . | . . . . Piercing Weapon . | . . . . Special Melee Weapon . | . . . . Unidentified Prototypes . | . . . . Parts Lost 6 | . . . 6 Power . | . . . . Propulsion 1 | . . . 1 Utility 2 | . . . 2 Weapon 3 | . . . 3 Highest Loss Streak 1 | . . . 1 To Critical Strikes . | . . . . Average Backups 9 | 4 4 7 12 Power . | . . . . Propulsion 3 | 2 1 1 5 Utility 3 | . 2 4 3 Weapon 1 | . 1 1 1 Tool/Special . | . . . . Unused Backups 17 | 3 1 2 11 Power 1 | . 1 . . Propulsion 8 | 3 . . 5 Utility 6 | . . 1 5 Weapon 2 | . . 1 1 Tool/Special . | . . . . Average Slot Usage (%) 90 | . 100 98 86 Engine 12 | . 14 14 11 Leg 15 | . 28 24 10 Wheel 10 | . . 1 14 Device 7 | . 28 9 2 Storage 8 | . . 10 8 Protection 8 | . . 7 10 Energy Gun 12 | . 11 14 12 Ballistic Gun 14 | . 16 14 13 Peak Build Rating 17 | 9 9 10 17 Average Rating 11 | 7 9 9 13 On Entrance 6 | . 9 9 9 Avg Prop Armor Cover (%) . | . . . . Naked Turns . | . . . . Heaviest Build 55 | 11 7 52 55 Greatest Support 40 | 20 20 20 40 Greatest Overweight (x) 5 | 1 . 4 5 Average Overweight (x) . | . . 1 1 Largest Inventory Capacity 20 | 8 5 20 20 Average Capacity 12 | 5 5 16 14 Most Carried 20 | 7 5 17 20 Average Carried 9 | 4 4 7 12 Final Capacity 20 | 5 5 20 5 Final Carried 17 | 5 5 17 5 Class Distribution -------------------- 43% | Scavenger-Mutant 38% | Mutant 18% | Subdweller-Mutant Dominant Class ---------------- Mutant | -10/Materials Scavenger-Mutant | -10/Mines Scavenger-Mutant | -10/Subcaves Resources | -11 -10 -10 -10 ----------- Run | Yrd Mat Min Sub Matter Collected 888 | 332 48 137 371 Remotely . | . . . . Salvage Created 790 | 144 110 260 276 Parts 54 | 10 8 19 17 Haulers Intercepted . | . . . . Recyclers Shooed 4 | 2 1 1 . Parts Field Recycled . | . . . . Retrieved Matter . | . . . . Parts Self-Destructed 12 | . . . 12 Prevented . | . . . . Parts Restored . | . . . . Kills | -11 -10 -10 -10 ------- Run | Yrd Mat Min Sub Combat Hostiles Destroyed 20 | . 3 7 10 Guns 18 | . 3 7 8 AOE 2 | . . . 2 Classes Destroyed 7 | 3 1 2 1 Worker 2 | 1 . 1 . Tunneler 3 | 3 . . . Recycler 2 | 1 1 . . Swarmer 10 | . 3 3 4 Grunt 3 | . . 2 1 Sentry 2 | . . 2 . Subdweller 5 | . . . 5 Best Kill Streak 4 | 1 3 3 4 Combat Bots Only 4 | . 3 3 4 Max Kills in Single Turn 2 | 1 1 2 2 Gunslinging 1 | . . 1 . Exploded 2 | . . . 2 Melee . | . . . . Uniques/NPCs Destroyed . | . . . . Combat | -11 -10 -10 -10 -------- Run | Yrd Mat Min Sub Hostile Shots Fired 234 | . 35 35 164 Missed 74 | . 9 10 55 Hits 160 | . 26 25 109 Projectile 160 | . 26 25 109 Critical Strikes 3 | . . 2 1 Damage Taken 1759 | . 203 299 1257 Core 254 | . 31 74 149 Absorbed by Shields . | . . . . Core Remaining (%) 100 | 100 . . . Volleys Fired 119 | 23 17 21 58 Largest 2 | 2 2 2 2 Hottest 95 | 40 60 79 95 Shots Fired 216 | 46 34 42 94 Gun 212 | 46 34 42 90 Cannon . | . . . . Launcher 4 | . . . 4 Special . | . . . . Kinetic 136 | 46 18 21 51 Thermal 68 | . 16 21 31 Explosive 4 | . . . 4 Electromagnetic 8 | . . . 8 Robot Hit Streak 28 | 6 7 7 28 Robot Miss Streak 5 | 5 5 3 4 Penetration Max . | . . . . Secondary Targets 2 | . 1 1 . Max Gunslinging Chain 1 | . 1 1 . Shots Hit Robots 133 | 26 15 28 64 Core Hits 52 | 13 6 14 19 Critical Kills . | . . . . Critical Parts Destroyed 1 | 1 . . . Critical Strikes 5 | 1 . 1 3 Burn 3 | . . 1 2 Destroy 2 | 1 . . 1 Melee Attacks . | . . . . Impact . | . . . . Slashing . | . . . . Piercing . | . . . . Sneak Attacks . | . . . . Combat Hostiles . | . . . . Follow-up Attacks . | . . . . Damage Inflicted 1919 | 214 146 319 1240 Guns 1698 | 214 146 319 1019 Cannons . | . . . . Explosions 221 | . . . 221 Melee . | . . . . Ramming . | . . . . Kinetic 1025 | 214 47 141 623 Thermal 561 | . 99 178 284 Explosive 221 | . . . 221 Electromagnetic 112 | . . . 112 Impact . | . . . . Slashing . | . . . . Piercing . | . . . . Highest Corruption . | . . . . Average Corruption . | . . . . Corruption Purged . | . . . . Corruption Blocked . | . . . . Overload Shots . | . . . . Overflow Damage 3 | . . . 3 Projectiles . | . . . . Explosions 3 | . . . 3 Melee . | . . . . Knockbacks . | . . . . Impact . | . . . . Kinetic . | . . . . Secondary . | . . . . Self-Inflicted Damage 20 | . . . 20 Shots 1 | . . . 1 Rammed . | . . . . Targets Rammed . | . . . . Kicked . | . . . . Crushed . | . . . . Highest Temperature 124 | . 60 124 28 Average Temperature 30 | . 23 39 9 Received Heat Transfer 453 | . . 147 306 Siege Activations . | . . . . Martial Activations . | . . . . Shielding Activations . | . . . . Robots Disrupted . | . . . . Combat Hostiles . | . . . . Robots Corrupted . | . . . . Combat Hostiles . | . . . . Parts Fried . | . . . . Impact Corruptions . | . . . . Robots Melted . | . . . . Combat Hostiles . | . . . . Parts Melted 2 | . 1 1 . Heat Transferred 1501 | . 225 498 778 Parts Sabotaged . | . . . . Parts Stolen . | . . . . Parts Stripped . | . . . . Power Chain Reactions . | . . . . Alert | -11 -10 -10 -10 ------- Run | Yrd Mat Min Sub Maximum Alert Level . | . . . . Low Security (%) 100 | 100 100 100 . Level 1 . | . . . . Level 2 . | . . . . Level 3 . | . . . . Level 4 . | . . . . Level 5 . | . . . . High Security . | . . . . Max Security . | . . . . Peak Influence 65 | 5 65 61 . Initial 11 | . . 11 . Average 18 | . 29 29 . Influence Increases 555 | 25 90 165 275 Destroy 0b10 Robot/C 300 | . 60 140 100 Destroy 0b10 Robot/NC 35 | 25 5 5 . Destroy Leader 40 | . 10 20 10 Lose Combat Pursuer 180 | . 15 . 165 Influence Decreases 555 | 25 60 165 305 Entered New Map 35 | . . 19 16 Time Decay 480 | 25 60 146 249 Lost Part 40 | . . . 40 Squads Dispatched . | . . . . Investigation . | . . . . Extermination . | . . . . Reinforcement . | . . . . Assault . | . . . . Garrison . | . . . . Intercept . | . . . . Searches Triggered . | . . . . Construction Impeded . | . . . . Haulers Reinforced . | . . . . Active Scanning Responses . | . . . . Cargo Convoy Interrupts . | . . . . Stealth | -11 -10 -10 -10 --------- Run | Yrd Mat Min Sub Distress Signals 1 | . 1 . . Communications Jammed . | . . . . Distress Signals . | . . . . Times Spotted 45 | . 8 7 30 Peak Tracking Total 9 | . 4 3 9 Tactical Retreats 5 | . 1 . 4 Traps | -11 -10 -10 -10 ------- Run | Yrd Mat Min Sub Traps Triggered . | . . . . Indirectly . | . . . . Trap Hack Attempts . | . . . . Triggered . | . . . . Disarmed . | . . . . Reprogrammed . | . . . . Reused . | . . . . Traps Extracted . | . . . . Installed . | . . . . Triggered . | . . . . Machines | -11 -10 -10 -10 ---------- Run | Yrd Mat Min Sub Machines Disabled 2 | . . . 2 Max in Single Turn 2 | . . . 2 Machines Repaired . | . . . . Machines Dismantled . | . . . . Machines Sabotaged . | . . . . Overloaded Fab Kills . | . . . . Hacking | -11 -10 -10 -10 --------- Run | Yrd Mat Min Sub Machines Accessed 1 | . 1 . . Terminals . | . . . . Fabricators . | . . . . Repair Stations . | . . . . Recycling Units 1 | . 1 . . Scanalyzers . | . . . . Garrison Access . | . . . . Total Hacks 7 | . 7 . . Successful 5 | . 5 . . Failed 2 | . 2 . . Catastrophic . | . . . . Database Lockouts . | . . . . Manual . | . . . . Terminals . | . . . . Fabricators . | . . . . Repair Stations . | . . . . Recycling Units 7 | . 7 . . Scanalyzers . | . . . . Garrison Access . | . . . . Terminal Hacks . | . . . . Fabricator Hacks . | . . . . Repair Station Hacks . | . . . . Recycling Unit Hacks 5 | . 5 . . Recycle Component 2 | . 2 . . Process 2 | . 2 . . Retrieve Matter 1 | . 1 . . Scanalyzer . | . . . . Garrison Access Hacks . | . . . . Unauthorized Hacks . | . . . . Terminals . | . . . . Fabricators . | . . . . Repair Stations . | . . . . Recycling Units . | . . . . Scanalyzers . | . . . . Garrison Access . | . . . . Data Cores Recovered . | . . . . Used . | . . . . Hacking Detections 1 | . 1 . . Full Trace Events . | . . . . Feedback Events . | . . . . Feedback Blocked . | . . . . Robot Schematics Acquired . | . . . . Robots Built . | . . . . Authchips . | . . . . Time . | . . . . Total Robot Build Rating . | . . . . Part Schematics Acquired . | . . . . Parts Built . | . . . . Authchips . | . . . . Time . | . . . . Total Part Build Rating . | . . . . Part Studies Acquired . | . . . . Parts Repaired . | . . . . Time . | . . . . Parts Recycled 2 | . 2 . . Recycled Matter 99 | . 99 . . Retrieved Matter 99 | . 99 . . Retrieved Components . | . . . . Parts Scanalyzed . | . . . . Part Schematics Acquired . | . . . . Parts Damaged . | . . . . Bothacking | -11 -10 -10 -10 ------------ Run | Yrd Mat Min Sub Used RIF Installer . | . . . . Robots Hacked . | . . . . Non-combat . | . . . . Combat . | . . . . Robot Hacks Applied . | . . . . Relay Couplers Released . | . . . . Fabnet Peak Effective % . | . . . . Robots Rewired . | . . . . Allies Hacked . | . . . . Hacks Repelled . | . . . . Allies | -11 -10 -10 -10 -------- Run | Yrd Mat Min Sub Total Allies . | . . . . Largest Group . | . . . . Highest-Rated Group . | . . . . Highest-Rated Ally . | . . . . Total Orders . | . . . . Ally Attacks . | . . . . Total Damage . | . . . . Kills . | . . . . Allies Corrupted . | . . . . Allies Melted . | . . . . Intel | -11 -10 -10 -10 ------- Run | Yrd Mat Min Sub Active Infowar (turns) 762 | 198 186 151 227 Optics 227 | . . . 227 Terrain 481 | 198 186 97 . Seismic 527 | 192 186 149 . Robot Analysis Total . | . . . . Derelict Logs Recovered 1 | . . . 1 Drone Launches . | . . . . Drone Recoveries . | . . . . Exploration | -11 -10 -10 -10 ------------- Run | Yrd Mat Min Sub Turns Passed 2041 | 322 186 370 1163 Spaces Moved 1206 | 203 108 139 756 Core 11 | 11 . . . Treads . | . . . . Legs 694 | 192 108 111 283 Wheels 501 | . . 28 473 Hover . | . . . . Flight . | . . . . Fastest Speed 50 | 50 120 120 107 Average Speed 130 | 117 120 195 123 Slowest Speed 260 | 120 120 260 155 Overloaded Moves . | . . . . Propulsion Burnouts . | . . . . Robots Hopped . | . . . . Potential Cave-ins . | . . . . Cave-ins Triggered . | . . . . Exploration Rate (%) 20 | 11 17 22 33 Regions Visited 3 Branch Regions 2 Pre-discovered Areas . | . . . . Known Exits Taken . | . . . . Unknown Exits Taken 3 | 1 1 1 . Scrap Searched 1 | . . 1 . Spaces Dug . | . . . . Terrain Destroyed 28 | . . . 28 Melee . | . . . . Projectile . | . . . . AOE 28 | . . . 28 Terrain Rammed . | . . . . Walls Destroyed . | . . . . Machines Disabled . | . . . . Actions | -11 -10 -10 -10 --------- Run | Yrd Mat Min Sub Total 1483 | 251 134 199 899 Wait 24 | . 2 10 12 Move 1203 | 202 107 138 756 Hop . | . . . . Pick Up 56 | 15 3 14 24 Fast Attach 1 | . . . 1 Attach 19 | 7 1 1 10 Detach 1 | . . 1 . Swap 25 | 1 2 9 13 Drop 33 | 3 2 5 23 Fire 119 | 23 17 21 58 Melee . | . . . . Ram . | . . . . Kick . | . . . . Crush . | . . . . Escape Stasis . | . . . . Rewire . | . . . . Trap . | . . . . Miscellaneous 2 | . . . 2 Route ------- -11/Scrapyard -10/Materials -10/Mines -10/Subcaves (discovered 1 exit: [*Rec]) History --------- Turn | Location | Event 12 | -11/Scrapyard | Discovered new exit (range 15) 323 | -11/Scrapyard | Entered Materials 324 | -10/Materials | Build established: Mutant 485 | -10/Materials | Discovered new exit (range 6) 509 | -10/Materials | Entered Mines 713 | -10/Mines | Received a Rocket Launcher from a helpful Derelict 816 | -10/Mines | Build established: Scavenger-Mutant 872 | -10/Mines | Discovered new exit (range 6) 879 | -10/Mines | Entered Subcaves 960 | -10/Subcaves | Shifting Twisted Machinery released Sub. Power Source 965 | -10/Subcaves | Shifting Twisted Machinery released Sub. Monowheel 977 | -10/Subcaves | Learned Materials trap positions 978 | -10/Subcaves | Ambushed by swarm of Subdwellers 979 | -10/Subcaves | Ambushed by Subdwellers from Twisted Machinery 979 | -10/Subcaves | Ambushed by Subdwellers from Twisted Machinery 1036 | -10/Subcaves | Lost 3 allies 1093 | -10/Subcaves | Ambushed by Subdwellers from Twisted Machinery 1349 | -10/Subcaves | Discovered new exit (range 12) 1364 | -10/Subcaves | Core integrity fell below 50% 1468 | -10/Subcaves | Core integrity fell below 20% 1902 | -10/Subcaves | Build established: Subdweller-Mutant 2042 | -10/Subcaves | Destroyed by 85-N85(R) with Subdweller Machine Gun Last Messages --------------- Shield (+49). [Achievement: Survival Of The Most Covered] 01929_ Sub. Power Source shoots sparks and powers down. 01929_ Dropped Broken Sub. Power Source. 01981_ YF-8GR(R) destroyed. 01991_ Scrap Shield destroyed. 01993_ 8S-6PG(R) destroyed. 01996_ Acquired 25 matter. 02002_ Dropped Med. Matter Pod. 02002_ Acquired Scrap Shield. 02004_ Extracted 10 matter. 02006_ Acquired Med. Matter Pod. 02010_ Acquired Scrap Shield Fragment. 02011_ Dropped Scrap Shield Fragment. 02012_ Scrap Shield Fragment affixed to Scrap Shield (+47). 02013_ Acquired 10 matter. 02015_ Acquired Sub. Laser. 02018_ Acquired 10 matter. Map ----- +----------------------------------------------------+ | ???????????????????????????????????????????????? | | ???????????????????????????????????????????????? | | ???????????????????????????????????????????????? | | ???????????????????????????????????????????????? | | ???????????????????????????????????????????????? | | ???????????????????????????????????????????????? | | ???????????????????????????????????????????????? | | ???????????????????????????????????????????????? | | ???????????????????????????????????????????????? | | ???????????????????????????????????????????????? | | ????????????????????????#??????????????????????? | | ???????????????????????# ?????????????????????? | | ?????????????? ??????## ????????????????????? | | ??????????? ?????## ????????????????????? | | ?????????? ????## #???????????????????? | | ????????? ??## ???##???????????????? | | ????????? ??# #?? ##??????????????? | | ????????? ??? ??? #??????????????? | | ?????????? #??# ??? #??????????????? | | ???????????? ### #?## ##?????????????? | | ?????????????# ## #?????????????? | | ?????????????# #?????????????? | | ???????????????# #??????????????? | | ???????????????# R## #??????????????? | | ???????????????# R #???????????????? | | ???????????????# @ #????????????????? | | ???????????????# # # # ##????????????????? | | ???????????????# ########??#?????????????????? | | ???????????????# #??###???####???????????????? | | ???????????????# #??# #??## ##??????????????? | | ??????????????## #### ##?# ##?????????????? | | ??????????????# %! ##? #?????????????? | | ??????????????### ! % ### #??????????????? | | ????????????????##*!! ##* #???????????????? | | ?????????????????## #???????????????? | | ??????????????????## #???????????????? | | ???????????????????## #???????????????? | | ????????????????????## ##??????????????? | | ????????????????????## ##?????????????? | | ????????????????????# #?????????????? | | ????????????????????# ### #?????????????? | | ????????????????????#####?### #?????????????? | | ????????????????????????????# #?????????????? | | ????????????????????#???????# #?????????????? | | ????????????????????# ????#### #?????????????? | | ????????????????????# ??## ## #?????????????? | | ????????????????????# ## ##?????????????? | | ????????????????????# #??????????????? | | ????????????????????# ##??????????????? | | ????????????????????# #???????????????? | +----------------------------------------------------+ Best States ------------- Heat Dissipation 25 Energy Generation 15 Energy Capacity 200 Matter Stores 300 Matter Capacity 300 Sight Range 21 Terrain Scan Range 16 Terrain Scan Density 10 Armor Coverage 800 Evasion (%) 55 Item Schematics ----------------- None Robot Schematics ------------------ None Fabricated ------------ Nothing Repaired ---------- Nothing Studied --------- None Alien Tech Used ----------------- None Achievements -------------- Spot Them First Survival Of The Most Covered Challenges ------------ None Game ------ Seed XenonFortressDiverter Manual? 0 Play Time 00:33:16 Cumulative 7.2 hours Start 2025.11.24 @ 16:32:41 End 2025.11.24 @ 19:16:19 Sessions 1 Manual Loads 0 Difficulty Rogue Special Mode None Game No. 12 Rogue 12 Adventurer 0 Explorer 0 Win Type - Total 0 Types 0/0/0/0/0/0/0/0/0/0 Lore% 8 Gallery% 11 Achievement% 9 Wizard Run 0 Options --------- Layout 1 ASCII 0 Keyboard 0 Movement Mouse Keybinds 0 Fullscreen 1 Font 24/Smallcaps Map View 50x35 Zoom Use 0% Tactical HUD 1 Map Filters NONE Filters NONE Steam 1 RUN: b4fb46fe-a55f-4d77-b2dc-857b42998903